fUST/lending_fUST_20250606
["ID","MTS","AMOUNT","RATE_DAILY","PERIOD"]
[364651334,1749181833666,-481.56932559,0.00023452,9]
[364651335,1749181833676,-1000.0,0.00023475,2]
[364651336,1749181833686,-440.0,0.00023498,2]
[364651337,1749181833695,-440.0,0.00023498,2]
[364651338,1749181833705,-440.0,0.00023498,2]
[364651339,1749181833715,-440.0,0.000235,2]
[364651340,1749181833726,-874.48,0.000235,2]
[364651341,1749181833736,-1142.33,0.000235,2]
[364651342,1749181833746,-440.0,0.000235,2]
[364651343,1749181833755,-440.0,0.000235,2]
[364651344,1749181833765,-440.0,0.00023501,2]
[364651345,1749181833774,-440.0,0.00023501,2]
[364651346,1749181833785,-447.56435636,0.00023501,2]
[364651347,1749181833795,-440.0,0.00023502,2]
[364651348,1749181833804,-440.0,0.00023502,2]
[364651349,1749181833814,-1557.74,0.00023502,2]
[364651350,1749181833824,-440.0,0.00023502,2]
[364651351,1749181833834,-501.47,0.00023502,2]
[364651352,1749181833844,-440.0,0.00023502,2]
[364651353,1749181833853,-440.0,0.00023502,2]
[364651354,1749181833864,-440.0,0.00023502,2]
[364651355,1749181833874,-536.13,0.00023502,2]
[364651356,1749181833884,-440.0,0.00023503,2]
[364651357,1749181833894,-440.0,0.00023503,2]
[364651358,1749181833904,-518.73,0.00023503,2]
[364651359,1749181833914,-440.0,0.00023503,2]
[364651360,1749181833924,-410.0,0.00023503,2]
[364651361,1749181833934,-440.0,0.00023503,2]
[364651362,1749181833944,-1211.78,0.00023503,2]
[364651363,1749181833954,-481.56932559,0.00023521,9]
[364651364,1749181833964,-1000.0,0.00023573,2]
[364651365,1749181833973,-505.26177206,0.00023573,2]
[364651366,1749181833983,-1000.0,0.00023573,2]
[364651367,1749181833992,-481.56932559,0.0002359,9]
[364651368,1749181834001,-481.56932559,0.00023659,9]
[364651369,1749181834010,-159.30827359,0.0002369,2]
[364651370,1749181834020,-481.56932559,0.00023728,9]
[364651371,1749181834030,-440.0,0.00023772,2]
[364651372,1749181834040,-440.0,0.00023772,2]
[364651373,1749181834049,-440.0,0.00023772,2]
[364651374,1749181834059,-440.0,0.00023773,2]
[364651375,1749181834069,-874.48,0.00023773,2]
[364651376,1749181834079,-1142.33,0.00023773,2]
[364651377,1749181834088,-440.0,0.00023773,2]
[364651378,1749181834098,-440.0,0.00023773,2]
[364651379,1749181834107,-440.0,0.00023775,2]
[364651380,1749181834117,-440.0,0.00023775,2]
[364651381,1749181834127,-500.0,0.00023775,2]
[364651382,1749181834137,-440.0,0.00023776,2]
[364651383,1749181834147,-440.0,0.00023776,2]
[364651384,1749181834157,-1557.74,0.00023776,2]
[364651385,1749181834167,-440.0,0.00023776,2]
[364651386,1749181834177,-501.47,0.00023776,2]
[364651387,1749181834186,-440.0,0.00023776,2]
[364651388,1749181834196,-440.0,0.00023776,2]
[364651389,1749181834205,-440.0,0.00023776,2]
[364651390,1749181834214,-536.13,0.00023776,2]
[364651391,1749181834224,-440.0,0.00023777,2]
[364651392,1749181834234,-440.0,0.00023777,2]
[364651393,1749181834244,-518.73,0.00023777,2]
[364651394,1749181834253,-440.0,0.00023777,2]
[364651395,1749181834263,-440.0,0.00023777,2]
[364651396,1749181834272,-1211.78,0.00023777,2]
[364651397,1749181834283,-600.0,0.00023793,2]
[364651398,1749181834293,-481.56932559,0.00023797,9]
[364651399,1749181834302,-1000.0,0.000238,7]
[364651400,1749181834312,-393.054843,0.00023854,3]
[364651401,1749181834322,-481.56932559,0.00023866,10]
[364651402,1749181834331,-481.56932559,0.00023934,10]
[364651403,1749181834341,-159.30827359,0.00023968,2]
[364651404,1749181834351,-155.292,0.00024,2]
[364651405,1749181834361,-481.56932559,0.00024003,10]
[364651406,1749181834370,-1500.0,0.00024023,2]
[364651407,1749181834380,-440.0,0.00024046,2]
[364651408,1749181834390,-440.0,0.00024046,2]
[364651409,1749181834400,-440.0,0.00024046,2]
[364651410,1749181834413,-440.0,0.00024047,2]
[364651411,1749181834423,-874.48,0.00024047,2]
[364651412,1749181834432,-1142.33,0.00024047,2]
[364651413,1749181834442,-440.0,0.00024047,2]
[364651414,1749181834452,-440.0,0.00024047,2]
[364651415,1749181834462,-440.0,0.00024049,2]
[364651416,1749181834472,-440.0,0.00024049,2]
[364651417,1749181834483,-500.0,0.00024049,2]
[364651418,1749181834493,-440.0,0.0002405,2]
[364651419,1749181834503,-440.0,0.0002405,2]
[364651420,1749181834513,-1557.74,0.0002405,2]
[364651421,1749181834522,-440.0,0.0002405,2]
[364651422,1749181834532,-501.47,0.0002405,2]
[364651423,1749181834542,-440.0,0.0002405,2]
[364651424,1749181834551,-440.0,0.0002405,2]
[364651425,1749181834561,-440.0,0.0002405,2]
[364651426,1749181834572,-536.13,0.0002405,2]
[364651427,1749181834582,-440.0,0.00024051,2]
[364651428,1749181834592,-440.0,0.00024051,2]
[364651429,1749181834601,-518.73,0.00024051,2]
[364651430,1749181834611,-440.0,0.00024051,2]
[364651431,1749181834620,-440.0,0.00024051,2]
[364651432,1749181834630,-1211.78,0.00024051,2]
[364651433,1749181834640,-532.69,0.00024068,4]
[364651434,1749181834649,-481.56932559,0.00024072,10]
[364651435,1749181834658,-800.0,0.00024118,2]
[364651436,1749181834668,-1517.25205249,0.00024121,2]
[364651437,1749181834678,-1500.0,0.00024121,2]
[364651438,1749181834687,-481.56932559,0.00024141,10]
[364651439,1749181834697,-800.0,0.00024155,2]
[364651440,1749181834706,-481.56932559,0.0002421,10]
[364651441,1749181834716,-800.0,0.00024226,2]
[364651442,1749181834725,-223.0315306,0.0002423,2]
[364651443,1749181834735,-800.0,0.0002424,2]
[364651444,1749181834745,-12079.85798782,0.00024245,2]
[364651445,1749181834755,-532.69,0.00024268,5]
[364651446,1749181834764,-481.56932559,0.00024279,10]
[364651447,1749181834773,-2000.0,0.000243,2]
[364651448,1749181834783,-934.27,0.000243,2]
[364651449,1749181834793,-2000.0,0.000243,2]
[364651450,1749181834803,-151.0,0.000243,10]
[364651451,1749181834813,-151.0,0.000243,8]
[364651452,1749181834823,-818.08,0.00024305,3]
[364651453,1749181834833,-712.072,0.00024315,2]
[364651454,1749181834842,-2224.0,0.00024315,2]
[364651455,1749181834851,-405.0,0.00024315,2]
[364651456,1749181834861,-440.0,0.00024319,2]
[364651457,1749181834871,-440.0,0.00024319,2]
[364651458,1749181834880,-440.0,0.0002432,2]
[364651459,1749181834890,-440.0,0.00024321,2]
[364651460,1749181834899,-874.48,0.00024321,2]
[364651461,1749181834909,-1142.33,0.00024321,2]
[364651462,1749181834918,-440.0,0.00024321,2]
[364651463,1749181834927,-440.0,0.00024321,2]
[364651464,1749181834937,-440.0,0.00024323,2]
[364651465,1749181834945,-440.0,0.00024323,2]
[364651466,1749181834955,-440.0,0.00024324,2]
[364651467,1749181834964,-440.0,0.00024324,2]
[364651468,1749181834975,-1557.74,0.00024324,2]
[364651469,1749181834984,-440.0,0.00024324,2]
[364651470,1749181834993,-501.47,0.00024324,2]
[364651471,1749181835002,-440.0,0.00024324,2]
[364651472,1749181835011,-440.0,0.00024324,2]
[364651473,1749181835022,-440.0,0.00024324,2]
[364651474,1749181835031,-536.13,0.00024324,2]
[364651475,1749181835041,-440.0,0.00024325,2]
[364651476,1749181835152,-440.0,0.00024325,2]
[364651477,1749181835162,-518.73,0.00024325,2]
[364651478,1749181835172,-440.0,0.00024325,2]
[364651479,1749181835181,-440.0,0.00024325,2]
[364651480,1749181835191,-1211.78,0.00024325,2]
[364651481,1749181835200,-699.7939636,0.00024329,2]
[364651482,1749181835209,-307.0475778,0.00024329,2]
[364651483,1749181835219,-1743.0,0.0002433,3]
[364651484,1749181835228,-1743.0,0.0002433,3]
[364651485,1749181835237,-1743.0,0.0002433,3]
[364651486,1749181835247,-1743.0,0.0002433,3]
[364651487,1749181835256,-1743.0,0.0002433,3]
[364651488,1749181835266,-1341.32977103,0.0002433,3]
[364651489,1749181835276,-212.976918,0.0002433,3]
[364651490,1749181835286,-423.83542519,0.0002433,3]
[364651491,1749181835296,-160.0,0.0002433,3]
[364651492,1749181835305,-12677.18918728,0.0002433,3]
[364651493,1749181835314,-272.68,0.00024332,3]
[364651494,1749181835324,-160.0,0.00024334,4]
[364651495,1749181835334,-160.0,0.00024334,5]
[364651496,1749181835344,-155.749069,0.00024339,7]
[364651497,1749181835354,-151.0,0.00024339,7]
[364651498,1749181835363,-151.0,0.00024339,7]
[364651499,1749181835373,-151.0,0.00024339,7]
[364651500,1749181835383,-151.0,0.00024339,7]
[364651501,1749181835392,-151.0,0.00024339,7]
[364651502,1749181835403,-140.48520354,0.00024339,7]
[364651503,1749181835421,-10.51479646,0.00024339,7]
[364651504,1749181835430,-151.0,0.00024339,7]
[364651505,1749181835439,-180.133122,0.00024339,7]
[364651506,1749181835449,-152.617476,0.00024339,7]
[364651507,1749181835459,-151.0,0.00024339,7]
[364651508,1749181835468,-151.0,0.00024339,7]
[364651509,1749181835478,-151.0,0.00024339,7]
[364651510,1749181835488,-151.0,0.00024339,7]
[364651511,1749181835498,-151.0,0.00024339,7]
[364651512,1749181835508,-151.0,0.0002434,7]
[364651513,1749181835518,-151.0,0.0002434,7]
[364651514,1749181835528,-151.0,0.0002434,7]
[364651515,1749181835538,-151.0,0.0002434,7]
[364651516,1749181835547,-151.0,0.0002434,7]
[364651517,1749181835557,-151.0,0.0002434,7]
[364651518,1749181835568,-151.0,0.0002434,7]
[364651519,1749181835577,-151.0,0.0002434,7]
[364651520,1749181835586,-182.966646,0.0002434,7]
[364651521,1749181835595,-247.279953,0.0002434,7]
[364651522,1749181835605,-247.279953,0.0002434,7]
[364651523,1749181835615,-247.279953,0.0002434,7]
[364651524,1749181835624,-247.279953,0.0002434,7]
[364651525,1749181835634,-247.279953,0.0002434,7]
[364651526,1749181835644,-247.279953,0.0002434,7]
[364651527,1749181835654,-247.279953,0.0002434,7]
[364651528,1749181835664,-247.279953,0.0002434,7]
[364651529,1749181835674,-247.279953,0.0002434,7]
[364651530,1749181835684,-247.279953,0.0002434,7]
[364651531,1749181835693,-247.279953,0.0002434,7]
[364651532,1749181835703,-247.279953,0.0002434,7]
[364651533,1749181835712,-247.279953,0.0002434,7]
[364651534,1749181835721,-247.279953,0.0002434,7]
[364651535,1749181835731,-247.279953,0.0002434,7]
[364651536,1749181835741,-247.279953,0.0002434,7]
[364651537,1749181835750,-247.279953,0.0002434,7]
[364651538,1749181835761,-247.279953,0.0002434,7]
[364651539,1749181835770,-247.279953,0.0002434,7]
[364651540,1749181835780,-247.279946,0.0002434,7]
[364651541,1749181835789,-152.140674,0.0002434,7]
[364651542,1749181835799,-28.16598046,0.0002434,7]
[364651545,1749181838126,-583.3,0.00022678,2]
[364651546,1749181838136,-500.0,0.00024299,2]
[364651547,1749181838146,-642.14385045,0.00024329,2]
[364651548,1749181838156,-122.83401954,0.0002434,7]
[364651549,1749181838165,-151.0,0.0002434,7]
[364651550,1749181838175,-151.0,0.0002434,7]
[364651551,1749181838184,-211.678565,0.0002434,7]
[364651552,1749181838194,-151.0,0.0002434,7]
[364651553,1749181838205,-151.0,0.0002434,7]
[364651554,1749181838214,-151.0,0.0002434,7]
[364651555,1749181838223,-227.732648,0.0002434,7]
[364651556,1749181838233,-280.148208,0.0002434,7]
[364651557,1749181838243,-280.148208,0.0002434,7]
[364651558,1749181838253,-280.148208,0.0002434,7]
[364651559,1749181838263,-280.148208,0.0002434,7]
[364651560,1749181838274,-280.148208,0.0002434,7]
[364651561,1749181838283,-280.148208,0.0002434,7]
[364651562,1749181838293,-280.148208,0.0002434,7]
[364651563,1749181838303,-280.148208,0.0002434,7]
[364651564,1749181838313,-280.148208,0.0002434,7]
[364651565,1749181838322,-280.148208,0.0002434,7]
[364651566,1749181838332,-280.148208,0.0002434,7]
[364651567,1749181838341,-280.148208,0.0002434,7]
[364651568,1749181838352,-280.148208,0.0002434,7]
[364651569,1749181838361,-280.148208,0.0002434,7]
[364651570,1749181838371,-280.148208,0.0002434,7]
[364651571,1749181838381,-280.148208,0.0002434,7]
[364651572,1749181838391,-280.148208,0.0002434,7]
[364651573,1749181838400,-280.148208,0.0002434,7]
[364651574,1749181838414,-280.148208,0.0002434,7]
[364651575,1749181838423,-280.148213,0.0002434,7]
[364651576,1749181838433,-151.0,0.0002434,7]
[364651577,1749181838442,-300.840392,0.0002434,7]
[364651578,1749181838454,-151.0,0.0002434,7]
[364651579,1749181838463,-151.0,0.0002434,7]
[364651580,1749181838473,-151.0,0.0002434,7]
[364651581,1749181838484,-151.0,0.0002434,7]
[364651582,1749181838494,-151.0,0.0002434,7]
[364651583,1749181838503,-187.443538,0.0002434,7]
[364651584,1749181838513,-12677.18918728,0.0002434,7]
[364651585,1749181838523,-151.0,0.00024341,7]
[364651586,1749181838532,-151.0,0.00024341,7]
[364651587,1749181838542,-151.0,0.00024341,7]
[364651588,1749181838552,-224.0,0.00024341,7]
[364651589,1749181838561,-560.573001,0.00024341,7]
[364651590,1749181838570,-560.573001,0.00024341,7]
[364651591,1749181838579,-560.573001,0.00024341,7]
[364651592,1749181838588,-560.573001,0.00024341,7]
[364651593,1749181838598,-560.573001,0.00024341,7]
[364651594,1749181838608,-560.573001,0.00024341,7]
[364651595,1749181838617,-560.573001,0.00024341,7]
[364651596,1749181838626,-560.573001,0.00024341,7]
[364651597,1749181838635,-560.573001,0.00024341,7]
[364651598,1749181838644,-560.573001,0.00024341,7]
[364651599,1749181838654,-560.573001,0.00024341,7]
[364651600,1749181838663,-560.573001,0.00024341,7]
[364651601,1749181838672,-560.573001,0.00024341,7]
[364651602,1749181838681,-560.573001,0.00024341,7]
[364651603,1749181838691,-560.573001,0.00024341,7]
[364651604,1749181838700,-560.573001,0.00024341,7]
[364651605,1749181838709,-560.573001,0.00024341,7]
[364651606,1749181838719,-560.573001,0.00024341,7]
[364651607,1749181838727,-560.573001,0.00024341,7]
[364651608,1749181838736,-560.572997,0.00024341,7]
[364651609,1749181838746,-422.23145582,0.00024341,2]
[364651610,1749181838755,-151.0,0.00024342,7]
[364651611,1749181838765,-151.0,0.00024342,7]
[364651612,1749181838774,-151.0,0.00024342,7]
[364651613,1749181838783,-151.0,0.00024342,7]
[364651614,1749181838792,-151.0,0.00024342,7]
[364651615,1749181838801,-154.831013,0.00024342,7]
[364651616,1749181838810,-151.0,0.00024342,7]
[364651617,1749181838820,-151.0,0.00024342,7]
[364651618,1749181838830,-154.88465,0.00024342,7]
[364651619,1749181838839,-151.0,0.00024342,7]
[364651620,1749181838848,-151.0,0.00024342,7]
[364651621,1749181838857,-152.965152,0.00024342,7]
[364651622,1749181838866,-440.0,0.00024343,2]
[364651623,1749181838875,-151.0,0.00024345,7]
[364651624,1749181838884,-153.523669,0.00024345,7]
[364651625,1749181838894,-617286.05399119,0.00024345,20]
[364651626,1749181838903,-7913.19,0.00024345,45]
[364651627,1749181838912,-678436.17461901,0.00024345,20]
[364651628,1749181838925,-29433.48029295,0.00024345,20]
[364651640,1749181840276,-440.0,0.00022675,2]
[364651642,1749181840286,-424.86804067,0.00022949,2]
[364651644,1749181840297,-159.30827359,0.00024245,2]
[364651646,1749181840306,-90193.21600501,0.00024345,20]
[364652174,1749181846252,-440.0,0.00022676,2]
[364652175,1749181846262,-440.0,0.0002295,2]
[364652176,1749181846271,-440.0,0.00022955,2]
[364652177,1749181846280,-440.0,0.00023224,2]
[364652178,1749181846289,-440.0,0.00023229,2]
[364652179,1749181846298,-440.0,0.00023498,2]
[364652181,1749181846308,-500.0,0.00023499,2]
[364652182,1749181846317,-385.53736714,0.00023499,2]
[364652183,1749181846327,-525.74119469,0.00023499,2]
[364652185,1749181846336,-507.13460578,0.00023499,2]
[364652186,1749181846345,-541.92187138,0.00023499,2]
[364652187,1749181846354,-153.49695854,0.00023499,2]
[364652188,1749181846363,-440.0,0.00023503,2]
[364652190,1749181846372,-440.0,0.00023772,2]
[364652191,1749181846381,-440.0,0.00023777,2]
[364652193,1749181846391,-440.0,0.00024046,2]
[364652195,1749181846399,-440.0,0.00024051,2]
[364652197,1749181846410,-440.0,0.00024319,2]
[364652199,1749181846419,-440.0,0.00024325,2]
[364652201,1749181846428,-256969.01027111,0.00024345,20]
[364652203,1749181846437,-39641.0,0.00024345,30]
[364652205,1749181846446,-1713.98036497,0.00024345,20]
[364653173,1749182226477,510.0,0.00019,2]
[364653175,1749182484231,150.0,0.00018866,2]
[364653176,1749182620296,150.0,0.00018843,2]
[364653178,1749182685464,244.694618,0.00013699,2]
[364653180,1749182753120,-500.0,0.00019492,2]
[364653181,1749182753141,-293.77507321,0.00019492,2]
[364653182,1749182753162,-244.694618,0.00020187,2]
[364653183,1749182753182,-153.10342125,0.000204,2]
[364653184,1749182753202,-900.0,0.00020509,2]
[364653185,1749182753222,-150.0,0.00020556,2]
[364653186,1749182753242,-2804.66904919,0.00020567,2]
[364653189,1749182832027,655.31532247,0.000189,2]
[364653190,1749182832132,-300.0,0.00020566,2]
[364653191,1749182832159,-297.27267963,0.00020567,2]
[364653193,1749182844129,-192.77149125,0.00020567,2]
[364653195,1749182964388,500.0,0.00019,2]
[364653198,1749183023041,436.87688164,0.000189,2]
[364653209,1749183032482,-300.0,0.00020566,2]
[364653210,1749183032492,-84.81577874,0.00020566,2]
[364653211,1749183032504,-215.18422126,0.00020566,2]
[364653212,1749183032514,-300.0,0.00020566,2]
[364653213,1749183032524,-100.97334738,0.00020566,2]
[364653214,1749183032537,-199.02665262,0.00020566,2]
[364653215,1749183032547,-1200.0,0.00020566,2]
[364653216,1749183032557,-21605.28677993,0.00020567,2]
[364653217,1749183032566,-1682.4382458,0.00020706,2]
[364653219,1749183032577,-190.387855,0.00021153,2]
[364653220,1749183032586,-160.0,0.00021334,2]
[364653221,1749183032597,-160.0,0.00021334,2]
[364653222,1749183032611,-300.0,0.00021601,2]
[364653223,1749183032621,-842.5625,0.00021604,2]
[364653224,1749183032631,-160.0,0.00021604,2]
[364653225,1749183032645,-12677.18918728,0.00021604,2]
[364653226,1749183032655,-900.0,0.00021605,2]
[364653227,1749183032665,-696.324749,0.000219,6]
[364653228,1749183032675,-175.09470293,0.00021917,2]
[364653229,1749183032686,-500.23,0.00021917,2]
[364653230,1749183032695,-493.83,0.00021917,2]
[364653231,1749183032705,-463.14,0.00021917,2]
[364653232,1749183032714,-440.0,0.00021917,2]
[364653233,1749183032724,-500.0,0.00021918,2]
[364653234,1749183032734,-696.32474896,0.00022003,6]
[364653235,1749183032744,-696.32474896,0.00022107,6]
[364653236,1749183032754,-500.23,0.00022191,2]
[364653237,1749183032764,-493.83,0.00022191,2]
[364653238,1749183032774,-463.14,0.00022191,2]
[364653239,1749183032784,-440.0,0.00022191,2]
[364653240,1749183032795,-730.66,0.00022198,2]
[364653241,1749183032804,-285.90652714,0.00022198,2]
[364653242,1749183032814,-1179.85,0.00022198,2]
[364653243,1749183032824,-440.0,0.00022198,2]
[364653244,1749183032835,-247.71738194,0.00022198,2]
[364653245,1749183032846,-440.0,0.00022198,2]
[364653246,1749183032857,-1142.57,0.00022199,2]
[364653247,1749183032866,-423.30705217,0.00022199,2]
[364653248,1749183032875,-440.0,0.00022199,2]
[364653249,1749183032886,-156.4891,0.00022199,2]
[364653250,1749183032896,-563.37,0.00022199,2]
[364653251,1749183032906,-516.74298464,0.00022199,2]
[364653252,1749183032915,-401.42033958,0.00022199,2]
[364653253,1749183032925,-446.37323188,0.00022199,2]
[364653254,1749183032935,-443.51518003,0.00022199,2]
[364653255,1749183032945,-432.88403858,0.00022199,2]
[364653256,1749183032954,-467.06025254,0.00022199,2]
[364653257,1749183032964,-432.21956111,0.00022199,2]
[364653258,1749183032973,-431.87746807,0.00022199,2]
[364653259,1749183032983,-500.0,0.00022199,2]
[364653260,1749183032992,-433.733976,0.00022199,2]
[364653261,1749183033001,-1126.63,0.00022199,2]
[364653262,1749183033011,-440.0,0.00022199,2]
[364653263,1749183033021,-277.06973739,0.00022199,2]
[364653264,1749183033031,-325.55149679,0.00022199,2]
[364653265,1749183033040,-212.3,0.00022199,2]
[364653266,1749183033050,-440.0,0.00022199,2]
[364653267,1749183033060,-504.60050763,0.00022199,2]
[364653268,1749183033070,-430.0,0.00022199,2]
[364653269,1749183033079,-430.0,0.00022199,2]
[364653271,1749183033089,-440.0,0.00022199,2]
[364653273,1749183033098,-432.08334056,0.00022199,2]
[364653275,1749183033108,-437.25014878,0.00022199,2]
[364653276,1749183033117,-488.8,0.00022199,2]
[364653277,1749183033127,-432.50484927,0.00022199,2]
[364653278,1749183033136,-440.0,0.00022199,2]
[364653279,1749183033146,-433.96694733,0.00022199,2]
[364653280,1749183033156,-270.29243344,0.00022199,2]
[364653281,1749183033166,-447.45219099,0.00022199,2]
[364653282,1749183033175,-388.71811405,0.00022199,2]
[364653283,1749183033185,-440.0,0.00022199,2]
[364653284,1749183033194,-510.45,0.00022199,2]
[364653285,1749183033204,-430.0,0.00022199,2]
[364653286,1749183033214,-696.32474896,0.0002221,6]
[364653287,1749183033223,-696.32474896,0.00022314,7]
[364653288,1749183033232,-420.0,0.00022382,2]
[364653289,1749183033242,-696.32474896,0.00022417,7]
[364653290,1749183033251,-500.23,0.00022465,2]
[364653291,1749183033401,-493.83,0.00022465,2]
[364653292,1749183033411,-463.14,0.00022465,2]
[364653293,1749183033420,-440.0,0.00022465,2]
[364653294,1749183033430,-730.66,0.00022472,2]
[364653295,1749183033440,-1179.85,0.00022472,2]
[364653296,1749183033449,-440.0,0.00022472,2]
[364653297,1749183033459,-440.0,0.00022472,2]
[364653298,1749183033468,-1142.57,0.00022473,2]
[364653299,1749183033478,-440.0,0.00022473,2]
[364653300,1749183033488,-563.37,0.00022473,2]
[364653301,1749183033497,-1126.63,0.00022473,2]
[364653302,1749183033507,-440.0,0.00022473,2]
[364653303,1749183033516,-440.0,0.00022473,2]
[364653304,1749183033526,-440.0,0.00022473,2]
[364653305,1749183033535,-158.16670935,0.00022473,2]
[364653306,1749183033545,-440.0,0.00022473,2]
[364653307,1749183033554,-510.45,0.00022473,2]
[364653308,1749183033564,-1200.0,0.00022488,2]
[364653309,1749183033573,-696.32474896,0.00022521,7]
[364653310,1749183033582,-696.32474896,0.00022624,7]
[364653311,1749183033592,-229.52673067,0.00022671,2]
[364653312,1749183033602,-440.0,0.00022674,2]
[364653313,1749183033612,-552.79,0.00022674,2]
[364653314,1749183033622,-440.0,0.00022674,2]
[364653315,1749183033632,-473.87,0.00022674,2]
[364653316,1749183033644,-440.0,0.00022674,2]
[364653317,1749183033654,-973.46245162,0.00022674,2]
[364653318,1749183033668,-288.88754838,0.00022674,2]
[364653319,1749183033678,-151.225,0.00022675,2]
[364653320,1749183033687,-179.00323097,0.00022675,2]
[364653321,1749183033697,-214.89560876,0.00022675,2]
[364653322,1749183033707,-188.60813839,0.00022675,2]
[364653367,1749183038249,-440.0,0.00022198,2]
[364653369,1749183038259,-283.50100219,0.00022199,2]
[364653372,1749183038270,-156.49899781,0.00022199,2]
[364653374,1749183038279,-528.82512651,0.00022472,2]
[364653375,1749183038289,-156.88,0.00022473,2]
[364653378,1749183038299,-171.05193947,0.00022675,2]
[364653380,1749183038311,-80.33992214,0.00022675,2]
[364653382,1749183038320,-440.0,0.00022675,2]
[364653384,1749183038330,-440.0,0.00022675,2]
[364653386,1749183038338,-460.10543884,0.00022676,2]
[364653388,1749183038348,-458.34687695,0.00022676,2]
[364653390,1749183038357,-468.2084846,0.00022676,2]
[364653392,1749183038366,-470.91857174,0.00022676,2]
[364653394,1749183038376,-453.44531511,0.00022676,2]
[364653396,1749183038385,-478.02433988,0.00022676,2]
[364653398,1749183038395,-500.0,0.00022676,2]
[364653400,1749183038405,-440.0,0.00022677,2]
[364653402,1749183038414,-900.0,0.00022701,2]
[364653404,1749183038424,-696.32474896,0.00022728,7]
[364653406,1749183038433,-500.23,0.00022739,2]
[364653408,1749183038442,-493.83,0.00022739,2]
[364653410,1749183038451,-463.14,0.00022739,2]
[364653412,1749183038460,-440.0,0.00022739,2]
[364653415,1749183038469,-730.66,0.00022746,2]
[364653417,1749183038478,-1179.85,0.00022746,2]
[364653419,1749183038487,-158.57630178,0.00022746,2]
[364653421,1749183038500,-281.42369822,0.00022746,2]
[364653423,1749183038510,-440.0,0.00022746,2]
[364653425,1749183038519,-1142.57,0.00022747,2]
[364653428,1749183038529,-440.0,0.00022747,2]
[364653430,1749183038539,-563.37,0.00022747,2]
[364653432,1749183038548,-1126.63,0.00022747,2]
[364653433,1749183038557,-440.0,0.00022747,2]
[364653435,1749183038567,-440.0,0.00022747,2]
[364653438,1749183038576,-440.0,0.00022747,2]
[364653440,1749183038585,-510.45,0.00022747,2]
[364653441,1749183038595,-127.17591645,0.0002276,2]
[364653444,1749183038607,-372.82408355,0.0002276,2]
[364653446,1749183038617,-500.0,0.0002276,2]
[364653448,1749183038627,-500.0,0.000228,2]
[364653450,1749183038636,-500.0,0.000228,2]
[364653452,1749183038646,-696.32474896,0.00022831,8]
[364653454,1749183038656,-577.1181603,0.00022854,2]
[364653456,1749183038666,-500.0,0.00022854,2]
[364653458,1749183038676,-500.0,0.00022882,2]
[364653460,1749183038685,-696.32474896,0.00022934,8]
[364653462,1749183038695,-440.0,0.00022948,2]
[364653464,1749183038705,-552.79,0.00022948,2]
[364653466,1749183038714,-440.0,0.00022948,2]
[364653468,1749183038723,-473.87,0.00022948,2]
[364653470,1749183038732,-440.0,0.00022948,2]
[364653471,1749183038742,-1262.35,0.00022948,2]
[364653472,1749183038751,-440.0,0.00022949,2]
[364653473,1749183038761,-440.0,0.00022949,2]